bitfinex/quotes_SOLUSD_20250630
["timestamp","ask_amount","ask_price","bid_price","bid_amount"]
[1751308404427,32.68389968,155.93,155.92,11.22252207]
[1751308405149,27.08,155.93,155.92,11.22252207]
[1751308405539,32.68389968,155.95,155.92,11.22252207]
[1751308405838,35.46446454,155.95,155.92,11.22252207]
[1751308406024,6.41272284,155.94,155.92,11.22252207]
[1751308408257,33.49248448,155.95,155.92,11.22252207]
[1751308409135,33.49248448,155.95,155.92,8.22252207]
[1751308409542,41.87694902,155.95,155.92,8.22252207]
[1751308409862,26.0,155.81,155.8,11.69680103]
[1751308410030,61.46446454,155.81,155.8,11.69680103]
[1751308410230,0.14216157,155.8,155.78,1.287681]
[1751308410430,3.34905859,155.85,155.78,9.67214554]
[1751308410654,3.34905859,155.85,155.8,8.38446454]
[1751308410829,3.34905859,155.85,155.8,6.38446454]
[1751308411026,3.34905859,155.85,155.8,8.38446454]
[1751308411231,6.41683778,155.84,155.8,8.38446454]
[1751308411451,39.07352313,155.85,155.82,8.38446454]
[1751308411452,3.34905859,155.85,155.82,8.38446454]
[1751308411644,3.34905859,155.85,155.84,8.38446454]
[1751308412646,1.68245859,155.85,155.84,8.38446454]
[1751308413648,1.68245859,155.85,155.84,14.80130232]
[1751308414056,8.33484446,155.9,155.84,15.08562546]
[1751308414246,8.33484446,155.9,155.85,18.933972]
[1751308414443,8.33484446,155.9,155.89,8.38446454]
[1751308414840,8.33484446,155.9,155.82,6.4176614]
[1751308415046,8.38446454,155.83,155.78,2.810081]
[1751308415250,8.38446454,155.83,155.78,11.19454554]
[1751308415251,14.80189116,155.83,155.78,11.19454554]
[1751308415461,8.38446454,155.82,155.78,2.810081]
[1751308415772,8.38446454,155.81,155.78,2.810081]
[1751308415964,8.38446454,155.8,155.78,1.287681]
[1751308416266,8.38446454,155.79,155.78,1.287681]
[1751308416439,30.7180857,155.8,155.77,10.10305178]
[1751308416440,8.38446454,155.78,155.77,10.10305178]
[1751308416758,35.84446454,155.78,155.77,10.10305178]
[1751308416937,61.84446454,155.78,155.77,10.10305178]
[1751308417139,35.98662611,155.78,155.77,10.10305178]
[1751308417441,61.33990739,155.78,155.77,10.10305178]
[1751308417857,61.33990739,155.78,155.77,10.46422898]
[1751308418236,6.41930928,155.78,155.77,10.46422898]
[1751308418563,27.0154857,155.78,155.77,10.46422898]
[1751308419457,33.43479498,155.78,155.77,10.46422898]
[1751308420036,27.0154857,155.78,155.77,10.46422898]
[1751308422173,41.81925952,155.78,155.77,10.46422898]
[1751308422661,33.43479498,155.78,155.77,10.46422898]
[1751308422867,27.0154857,155.78,155.77,10.46422898]
[1751308423077,33.43479498,155.78,155.77,10.46422898]
[1751308423849,41.81925952,155.78,155.77,10.46422898]
[1751308424249,33.43479498,155.78,155.77,10.46422898]
[1751308424461,41.81925952,155.78,155.77,10.46422898]
[1751308426763,33.43479498,155.78,155.77,10.46422898]
[1751308427150,41.81925952,155.78,155.77,10.46422898]
[1751308429165,27.0154857,155.78,155.77,10.46422898]
[1751308430168,33.43479498,155.78,155.77,10.46422898]
[1751308431274,41.81925952,155.78,155.77,10.46422898]
[1751308432455,33.43479498,155.78,155.77,10.46422898]
[1751308433168,41.81925952,155.78,155.77,10.46422898]
[1751308433774,33.43479498,155.78,155.77,10.46422898]
[1751308435658,41.81925952,155.78,155.77,10.46422898]
[1751308438188,33.43479498,155.78,155.77,10.46422898]
[1751308438390,41.81925952,155.78,155.77,10.46422898]
[1751308439169,33.43479498,155.78,155.77,10.46422898]
[1751308439376,42.76925952,155.78,155.77,10.46422898]
[1751308439577,34.38479498,155.78,155.77,10.46422898]
[1751308440464,27.9654857,155.78,155.77,10.46422898]
[1751308441161,34.38479498,155.78,155.77,10.46422898]
[1751308441667,27.9654857,155.78,155.77,10.46422898]
[1751308441874,27.9654857,155.78,155.77,18.84869352]
[1751308442260,34.38479498,155.78,155.77,10.46422898]
[1751308442488,27.9654857,155.78,155.77,10.46422898]
[1751308442786,34.38479498,155.78,155.77,10.46422898]
[1751308443987,27.9654857,155.78,155.77,10.46422898]
[1751308444487,27.9654857,155.78,155.77,43.91806376]
[1751308444692,27.9654857,155.78,155.77,44.34454847]
[1751308444893,0.95,155.78,155.77,44.34454847]
[1751308445194,8.70276976,155.84,155.78,18.933972]
[1751308445394,15.11979866,155.84,155.77,16.88395036]
[1751308445597,15.11979866,155.84,155.77,10.46422898]
[1751308445765,15.11979866,155.84,155.79,8.38446454]
[1751308445970,0.5,155.83,155.79,8.38446454]
[1751308446171,0.5,155.83,155.77,16.88389332]
[1751308446480,0.5,155.83,155.8,8.38446454]
[1751308446986,15.11979866,155.84,155.8,8.38446454]
[1751308447196,8.70276976,155.84,155.82,8.38446454]
[1751308447373,8.70276976,155.84,155.83,8.38446454]
[1751308448666,8.70276976,155.84,155.83,14.99236454]
[1751308448863,8.70276976,155.84,155.83,21.4096141]
[1751308449268,0.2,155.85,155.83,21.4096141]
[1751308449472,0.2,155.85,155.84,33.73527432]
[1751308449687,0.2,155.85,155.84,33.87743589]
[1751308449895,8.33484446,155.9,155.85,0.14216157]
[1751308450070,8.33484446,155.9,155.84,6.41683778]
[1751308450273,8.33484446,155.9,155.88,8.38446454]
[1751308450589,0.2,155.91,155.85,18.933972]
[1751308450774,0.2,155.91,155.88,8.38446454]
[1751308450974,0.2,155.91,155.89,8.38446454]
[1751308451374,0.2,155.91,155.9,8.38446454]
[1751308451670,0.2,155.91,155.9,16.06446454]
[1751308453191,6.61395676,155.91,155.9,7.68]
[1751308454276,14.9984213,155.91,155.86,16.06446454]
[1751308454592,14.9984213,155.91,155.8,42.07811587]
[1751308454593,8.38446454,155.87,155.8,8.38446454]
[1751308454889,50.34884868,155.91,155.79,7.68]
[1751308454890,17.35478328,155.88,155.83,8.38446454]
[1751308455069,8.97031874,155.88,155.83,8.38446454]
[1751308455270,8.97031874,155.88,155.84,8.38446454]
[1751308455478,15.38587741,155.88,155.84,8.38446454]
[1751308456499,15.38587741,155.88,155.81,6.56023486]
[1751308456500,8.97031874,155.88,155.81,6.56023486]
[1751308456704,15.38563911,155.88,155.85,8.38446454]
[1751308457299,0.5,155.87,155.85,8.38446454]
[1751308457998,0.5,155.87,155.82,25.35151103]
[1751308458177,0.5,155.87,155.84,8.38446454]
[1751308458377,0.5,155.87,155.85,8.38446454]
[1751308459091,6.91562839,155.87,155.84,8.38446454]
[1751308459297,0.5,155.87,155.84,8.38446454]
[1751308460099,0.5,155.87,155.85,8.38446454]
[1751308460706,0.95,155.86,155.85,8.38446454]
[1751308464009,0.95,155.86,155.85,20.86879059]
[1751308464591,0.95,155.86,155.85,39.94492416]
[1751308464884,0.95,155.86,155.85,14.45236454]
[1751308465403,0.95,155.86,155.85,20.86879059]
[1751308465610,0.95,155.86,155.85,12.48432605]
[1751308465807,0.95,155.86,155.85,20.86879059]
[1751308467349,0.95,155.86,155.85,39.80276259]
[1751308467896,0.95,155.86,155.85,39.94492416]
[1751308470122,1.45,155.86,155.85,39.94492416]
[1751308470291,0.95,155.86,155.85,39.94492416]
[1751308473812,0.2,155.88,155.86,0.14216157]
[1751308474030,0.2,155.88,155.87,35.14059811]
[1751308474427,0.2,155.88,155.87,34.99843654]
[1751308475139,0.2,155.88,155.87,41.41403928]
[1751308475636,0.2,155.88,155.87,22.48006728]
[1751308475839,0.7,155.88,155.87,7.68]
[1751308476210,0.7,155.88,155.87,16.06446454]
[1751308476620,0.7,155.88,155.87,7.68]
[1751308476821,0.7,155.88,155.87,16.06446454]
[1751308477410,0.7,155.88,155.87,22.48006728]
[1751308477613,0.7,155.88,155.87,41.41403928]
[1751308477832,0.2,155.88,155.87,41.41403928]
[1751308478134,0.2,155.88,155.87,7.68]
[1751308478843,0.2,155.88,155.87,16.06446454]
[1751308479158,0.2,155.88,155.87,22.48006728]
[1751308479646,0.2,155.88,155.87,16.06446454]
[1751308480335,0.2,155.88,155.87,22.48006728]
[1751308480534,0.2,155.88,155.87,7.68]
[1751308480916,9.08446454,155.88,155.87,7.68]
[1751308481143,0.7,155.88,155.87,7.68]
[1751308482527,0.7,155.88,155.87,14.09560274]
[1751308482930,0.7,155.88,155.87,22.48006728]
[1751308483119,0.7,155.88,155.87,14.09560274]
[1751308483320,0.7,155.88,155.87,22.48006728]
[1751308484141,0.7,155.88,155.87,41.41403928]
[1751308484545,0.2,155.88,155.87,22.48006728]
[1751308484850,0.2,155.88,155.87,47.50985218]
[1751308485629,0.2,155.88,155.87,39.12538764]
[1751308485932,0.2,155.88,155.87,47.50985218]
[1751308486245,0.2,155.88,155.87,7.68]
[1751308486825,0.2,155.88,155.87,14.09560274]
[1751308487249,0.2,155.88,155.87,16.06446454]
[1751308487453,0.2,155.88,155.87,7.68]
[1751308489149,1.15,155.88,155.87,7.68]
[1751308490843,1.65,155.88,155.87,7.68]
[1751308491754,16.44965571,155.88,155.87,7.68]
[1751308492241,1.65,155.88,155.87,7.68]
[1751308495426,8.06519117,155.88,155.87,7.68]
[1751308495840,1.65,155.88,155.87,7.68]
[1751308496548,16.44965571,155.88,155.87,7.68]
[1751308496855,16.44965571,155.88,155.85,0.1]
[1751308497023,8.38446454,155.86,155.85,0.1]
[1751308498957,14.80047891,155.86,155.85,0.1]
[1751308500745,6.41601437,155.86,155.85,0.1]
[1751308500952,8.38446454,155.86,155.85,0.1]
[1751308502739,14.80006728,155.87,155.85,0.1]
[1751308503053,1.65,155.88,155.85,0.1]
[1751308503551,1.65,155.88,155.86,8.38446454]
[1751308503729,1.65,155.88,155.87,8.38446454]
[1751308504636,1.15,155.88,155.87,14.33811587]
[1751308504880,1.15,155.88,155.87,12.36925407]
[1751308505050,1.15,155.88,155.87,20.75371861]
[1751308505458,1.15,155.88,155.87,39.82985218]
[1751308505634,0.2,155.88,155.87,25.49173631]
[1751308505837,0.2,155.88,155.87,33.87620085]
[1751308506751,0.2,155.88,155.87,14.36159257]
[1751308506938,0.2,155.88,155.87,6.41560274]
[1751308507138,0.7,155.88,155.87,14.3729119]
[1751308507356,0.7,155.88,155.87,14.80006728]
[1751308507537,0.7,155.88,155.87,20.78851464]
[1751308508050,0.7,155.88,155.87,39.72248664]
[1751308508357,0.2,155.88,155.87,33.73403928]
[1751308508558,0.2,155.88,155.87,41.68002911]
[1751308509265,0.2,155.88,155.87,33.73403928]
[1751308510246,0.2,155.88,155.87,33.87620085]
[1751308511162,0.2,155.88,155.87,41.82219068]
[1751308512392,0.2,155.88,155.87,14.36159257]
[1751308512571,0.2,155.88,155.87,20.7841718]
[1751308512747,0.7,155.88,155.87,20.7841718]
[1751308513154,0.2,155.88,155.87,20.7841718]
[1751308513353,0.2,155.88,155.87,39.7181438]
[1751308514363,0.2,155.88,155.87,33.87620085]
[1751308514779,0.2,155.88,155.87,34.51776112]
[1751308515273,0.2,155.88,155.87,42.90222566]
[1751308515478,0.2,155.91,155.88,0.42648471]
[1751308515644,0.2,155.91,155.9,27.31843654]
[1751308515844,0.2,155.91,155.9,24.58999853]
[1751308516050,0.2,155.91,155.9,30.57195696]
[1751308516259,0.2,155.91,155.9,31.00436671]
[1751308516465,0.2,155.91,155.9,36.98632514]
[1751308520051,0.2,155.91,155.9,42.13082356]
[1751308520363,0.2,155.91,155.9,36.98632514]
[1751308521577,0.2,155.91,155.9,42.18651432]
[1751308521873,0.2,155.92,155.91,0.14216157]
[1751308522073,0.2,155.92,155.91,40.15354053]
[1751308522262,0.2,155.92,155.91,59.08751253]
[1751308523053,0.2,155.92,155.91,67.03350236]
[1751308523262,0.2,155.92,155.91,59.08751253]
[1751308523650,0.2,155.92,155.91,67.03350236]
[1751308524072,0.2,155.92,155.91,75.24100236]
[1751308524271,0.2,155.92,155.91,67.29501253]
[1751308525582,0.2,155.95,155.94,24.58999853]
[1751308525897,0.2,155.95,155.94,51.9921601]
[1751308526188,0.2,155.98,155.95,19.07613357]
[1751308526358,0.2,155.98,155.97,31.00148791]
[1751308526559,0.2,155.98,155.97,32.82546138]
[1751308526757,0.2,155.98,155.97,38.48148791]
[1751308528259,0.2,155.98,155.97,70.27967601]
[1751308528465,0.2,155.98,155.97,63.44082494]
[1751308528761,0.2,155.98,155.97,97.49967601]
[1751308528966,0.2,155.98,155.97,103.46279983]
[1751308529367,0.2,155.98,155.97,111.02279983]
[1751308530388,0.2,156.09,156.01,18.933972]
[1751308530697,0.2,156.09,156.04,0.28432314]
[1751308530872,0.2,156.09,156.08,5.65602653]
[1751308531076,0.2,156.09,156.05,34.7]
[1751308531285,0.2,156.09,156.06,5.65602653]
[1751308531579,0.2,156.09,156.05,34.7]
[1751308531778,5.65602653,156.08,156.05,7.48]
[1751308532169,0.2,156.09,156.05,13.13602653]
[1751308532496,5.85602653,156.09,156.05,7.48]
[1751308532670,5.65602653,156.06,156.03,7.48]
[1751308532874,0.2,156.09,156.03,7.48]
[1751308533074,5.65602653,156.06,156.03,7.48]
[1751308533273,5.65602653,156.07,156.03,7.48]
[1751308533481,0.5,156.08,156.03,13.13602653]
[1751308533482,6.15602653,156.08,156.03,13.13602653]
[1751308533695,0.5,156.08,156.04,5.65602653]
[1751308533990,0.2,156.09,156.05,8.36780921]
[1751308534875,0.2,156.09,156.05,14.77566718]
[1751308535601,0.2,156.09,156.06,8.36780921]
[1751308535788,0.2,156.09,156.07,8.36780921]
[1751308535993,0.2,156.09,156.08,8.36780921]
[1751308536983,0.2,156.09,156.08,14.77477999]
[1751308538392,0.1359344,156.09,156.08,14.77477999]
[1751308539593,0.1359344,156.09,156.04,0.28432314]
[1751308539908,0.1359344,156.09,156.07,8.36780921]
[1751308540081,0.1359344,156.09,156.06,8.36780921]
[1751308540879,14.91034953,156.09,156.05,8.36780921]
[1751308541082,14.91034953,156.09,156.03,13.8889247]
[1751308541083,8.36780921,156.07,155.98,7.5907]
[1751308541297,8.36780921,156.07,156.0,7.42]
[1751308541595,8.36780921,156.07,156.02,8.36780921]
[1751308541768,0.5,156.08,156.02,8.36780921]
[1751308541973,8.36780921,156.07,156.02,8.36780921]
[1751308542166,0.5,156.08,156.03,8.36780921]
[1751308542414,0.5,156.08,156.04,8.36780921]
[1751308542771,0.5,156.08,156.02,6.40922969]
[1751308542772,0.5,156.08,156.05,8.36780921]
[1751308542969,6.90698445,156.08,156.04,8.36780921]
[1751308543310,0.5,156.08,156.04,8.36780921]
[1751308543873,0.5,156.08,156.06,8.36780921]
[1751308544096,0.1359344,156.09,156.06,8.36780921]
[1751308544281,0.1359344,156.09,156.07,8.36780921]
[1751308545079,0.1359344,156.09,156.08,15.78780921]
[1751308545277,0.2,156.13,156.09,18.64964886]
[1751308545498,0.2,156.13,156.12,8.36780921]
[1751308547986,0.2,156.13,156.11,8.36780921]
[1751308549208,6.60503721,156.13,156.09,8.36780921]
[1751308549385,6.60503721,156.13,156.1,7.42]
[1751308549581,14.97284642,156.13,156.1,7.42]
[1751308549939,8.36780921,156.11,156.05,7.42]
[1751308550110,8.36780921,156.11,156.07,8.36780921]
[1751308550291,8.36780921,156.12,156.07,8.36780921]
[1751308550696,6.40573954,156.11,156.06,18.64964886]
[1751308550893,6.40573954,156.11,156.07,8.36780921]
[1751308551190,6.40573954,156.11,156.06,18.64964886]
[1751308551191,6.40573954,156.11,156.08,8.36780921]
[1751308551388,6.40573954,156.11,156.07,8.36780921]
[1751308551586,6.40573954,156.11,156.06,8.36780921]
[1751308551587,14.77354875,156.11,156.06,8.36780921]
[1751308552705,0.5,156.1,156.06,8.36780921]
[1751308554612,0.5,156.1,156.07,8.36780921]
[1751308556106,6.90624434,156.1,156.06,8.36780921]
[1751308556604,6.90624434,156.1,156.05,7.42]
[1751308556605,15.27405355,156.1,156.05,7.42]
[1751308556803,8.36780921,156.09,156.05,7.42]
[1751308557011,6.90624434,156.1,156.05,7.42]
[1751308557310,7.36780921,156.09,156.05,7.42]
[1751308557903,8.36780921,156.09,156.05,15.78780921]
[1751308558101,0.5,156.1,156.07,8.36780921]
[1751308559408,6.4058179,156.11,156.07,8.36780921]
[1751308559989,6.40545356,156.12,156.08,8.36780921]
[1751308560808,14.77326277,156.12,156.07,8.36780921]
[1751308561709,8.36780921,156.1,156.05,15.78780921]
[1751308561913,5.64771242,156.08,156.05,7.42]
[1751308562715,0.5,156.07,156.05,7.42]
[1751308563303,6.14771242,156.07,156.03,0.2]
[1751308563504,0.5,156.07,156.04,5.64771242]
[1751308563703,22.41877664,156.12,156.04,5.64771242]
[1751308563704,5.64771242,156.08,156.04,13.06771242]
[1751308564019,5.64771242,156.08,156.04,7.42]
[1751308564515,5.64771242,156.09,156.04,13.06771242]
[1751308565613,6.4061499,156.1,156.04,7.42]
[1751308565614,22.42152465,156.1,156.04,7.42]
[1751308565818,5.64771242,156.06,156.04,7.42]
[1751308566506,5.64771242,156.07,156.04,7.42]
[1751308566814,5.64771242,156.08,156.04,7.42]
[1751308567020,6.40532923,156.12,156.05,24.29736128]
[1751308567218,5.64771242,156.1,156.05,24.29736128]
[1751308567713,5.64771242,156.09,156.04,13.06771242]
[1751308568131,12.05432469,156.09,156.04,19.47618536]
[1751308568422,6.40661227,156.09,156.05,5.64771242]
[1751308570719,17.78152363,156.13,156.06,24.58168442]
[1751308570720,5.64771242,156.11,156.06,24.58168442]
[1751308570914,6.40532923,156.12,156.06,24.58168442]
[1751308571123,5.64771242,156.11,156.06,24.58168442]
[1751308571502,5.64771242,156.11,156.06,30.98927035]
[1751308572417,5.64771242,156.1,156.05,36.64829384]
[1751308572820,5.64771242,156.1,156.05,30.24024796]
[1751308573005,5.64771242,156.09,156.05,24.59253554]
[1751308573606,5.64771242,156.09,156.05,31.0007294]
[1751308574329,12.05444044,156.09,156.05,5.94288668]
[1751308574511,6.40672802,156.09,156.04,7.42]
[1751308574717,5.64771242,156.06,156.04,7.42]
[1751308574927,6.40672802,156.09,156.04,7.42]
[1751308574928,5.64771242,156.07,156.04,7.42]
[1751308575123,5.64771242,156.06,156.04,7.42]
[1751308575326,6.40672802,156.09,156.04,7.42]
[1751308575522,12.05483375,156.08,156.04,7.42]
[1751308577027,5.64771242,156.07,156.04,7.32]
[1751308578022,5.64771242,156.05,156.04,7.32]
[1751308578415,6.59771242,156.05,156.04,7.32]
[1751308578726,7.35820249,156.05,156.04,7.32]
[1751308578911,0.95,156.05,156.04,7.32]
[1751308579326,12.05573671,156.06,156.04,7.32]
[1751308579839,6.40802429,156.06,156.04,7.32]
[1751308580011,12.05573671,156.06,156.04,7.32]
[1751308580634,5.64771242,156.06,156.04,7.32]
[1751308581016,12.05514107,156.07,156.04,7.32]
[1751308581415,5.64771242,156.06,156.04,7.32]
[1751308582434,0.95,156.05,156.04,7.32]
[1751308583011,13.00591491,156.05,156.04,7.32]
[1751308584437,13.00591491,156.05,156.03,0.2]
[1751308584438,13.14807648,156.05,156.03,0.2]
[1751308584637,5.64771242,156.04,156.03,0.2]
[1751308584950,12.05632559,156.04,156.03,0.2]
[1751308585150,5.64771242,156.04,156.03,0.2]
[1751308585354,6.59771242,156.05,156.03,0.2]
[1751308587355,6.59771242,156.05,156.03,6.60899022]
[1751308587527,0.95,156.05,156.03,6.60899022]
[1751308587727,6.59771242,156.05,156.03,0.2]
[1751308588352,5.64771242,156.04,156.03,0.2]
[1751308589353,0.95,156.05,156.03,0.2]
[1751308590347,0.95,156.05,156.02,5.60936587]
[1751308591449,6.59771242,156.05,156.01,32.40969583]
[1751308591639,5.64771242,156.04,156.0,6.41018647]
[1751308592046,0.95,156.05,155.99,6.41062343]
[1751308592047,5.64771242,156.02,155.99,6.41062343]
[1751308592239,5.64771242,156.02,155.99,12.35351011]
[1751308592639,5.64771242,156.03,155.99,12.35351011]
[1751308593241,5.64771242,156.02,155.99,12.35351011]
[1751308593436,5.64771242,156.02,155.99,6.41062343]
[1751308595337,5.64771242,156.0,155.98,7.52]
[1751308595537,5.64771242,155.99,155.98,7.52]
[1751308595938,5.64771242,155.99,155.96,0.2]
[1751308595939,44.79181043,155.97,155.96,0.2]
[1751308596161,31.78987399,155.97,155.96,0.2]
[1751308596365,38.20136337,155.97,155.96,0.2]
[1751308596661,0.5,155.97,155.96,0.2]
[1751308596861,6.14771242,155.97,155.96,0.2]
[1751308602766,0.5,155.97,155.96,0.2]
[1751308602971,6.14771242,155.97,155.96,0.2]
[1751308609161,12.5592018,155.97,155.96,0.2]
[1751308610888,6.14771242,155.97,155.96,0.2]
[1751308611381,12.5592018,155.97,155.96,0.2]
[1751308612176,12.70136337,155.97,155.96,0.2]
[1751308613596,18.34907579,155.97,155.96,0.2]
[1751308614775,18.34907579,155.97,155.92,0.2]
[1751308614776,26.0,155.94,155.92,0.2]
[1751308614962,5.64771242,155.93,155.92,0.2]
[1751308615778,12.06084651,155.93,155.92,0.2]
[1751308617574,5.64771242,155.93,155.92,0.2]
[1751308618685,12.06084651,155.93,155.92,0.2]
[1751308621092,12.20300808,155.93,155.92,0.2]
[1751308622086,26.0,155.94,155.92,0.2]
[1751308622276,5.64771242,155.93,155.92,0.2]
[1751308623385,12.06084651,155.93,155.92,0.2]
[1751308623791,38.06084651,155.93,155.92,0.2]
[1751308624294,38.06084651,155.93,155.89,0.2]
[1751308624295,26.0,155.9,155.89,0.2]
[1751308624492,26.0,155.86,155.85,0.1]
[1751308624787,31.64771242,155.86,155.85,0.1]
[1751308625192,38.20588836,155.86,155.85,0.1]
[1751308625983,57.13986036,155.86,155.85,0.1]
[1751308626669,57.13986036,155.86,155.78,0.3611772]
[1751308626670,26.0,155.82,155.78,0.3611772]
[1751308626871,5.64771242,155.81,155.78,0.3611772]
[1751308627082,12.06595979,155.81,155.78,0.3611772]
[1751308627398,5.64771242,155.8,155.78,0.3611772]
[1751308627597,5.64771242,155.79,155.78,0.3611772]
[1751308628972,38.37758641,155.79,155.78,0.3611772]
[1751308629170,44.79648364,155.79,155.78,0.3611772]
[1751308629371,39.14877122,155.79,155.78,0.3611772]
[1751308629588,5.64771242,155.79,155.78,0.3611772]
[1751308629772,52.94,155.85,155.78,0.3611772]
[1751308629971,5.64771242,155.81,155.78,0.3611772]
[1751308630375,5.64771242,155.82,155.78,0.4611772]
[1751308630590,5.64771242,155.82,155.78,6.88039975]
[1751308630798,5.64771242,155.83,155.78,12.52811217]
[1751308630978,32.41642605,155.85,155.78,12.52811217]
[1751308631173,5.64771242,155.83,155.78,12.52811217]
[1751308631596,12.06514175,155.83,155.78,0.4611772]
[1751308631782,5.64771242,155.81,155.78,0.4611772]
[1751308632916,5.64771242,155.82,155.78,0.4611772]
[1751308633401,0.5,155.8,155.78,12.5281212]
[1751308633706,5.64771242,155.84,155.79,5.64771242]
[1751308634404,5.64771242,155.83,155.78,12.5281945]
[1751308635113,5.64771242,155.82,155.78,6.10888962]
[1751308635404,12.06550926,155.82,155.78,6.10888962]
[1751308635610,12.06550926,155.82,155.78,0.4611772]
[1751308635786,5.64771242,155.81,155.78,0.4611772]
[1751308637186,12.06591021,155.81,155.78,0.4611772]
[1751308637705,6.41724956,155.83,155.78,0.4611772]
[1751308637890,5.64771242,155.81,155.78,0.4611772]
[1751308638811,12.06599667,155.81,155.78,0.4611772]
[1751308639512,12.56566079,155.82,155.78,0.4611772]
[1751308639698,5.64771242,155.81,155.78,0.4611772]
[1751308640200,5.64771242,155.79,155.78,0.4611772]
[1751308640419,38.39758641,155.79,155.78,0.4611772]
[1751308640886,44.81648364,155.79,155.78,0.4611772]
[1751308641199,33.5210588,155.79,155.78,0.4611772]
[1751308641419,39.16877122,155.79,155.78,0.4611772]
[1751308642117,39.02660965,155.79,155.78,0.4611772]
[1751308642315,12.06660965,155.79,155.78,0.4611772]
[1751308642819,5.64771242,155.79,155.78,0.4611772]
[1751308643182,5.64771242,155.8,155.78,0.4611772]
[1751308643787,5.64771242,155.79,155.78,0.4611772]
[1751308644908,12.06660965,155.79,155.78,0.4611772]
[1751308648916,0.5,155.82,155.78,0.4611772]
[1751308648917,12.0663548,155.8,155.78,0.4611772]
[1751308649095,6.41864238,155.8,155.78,0.4611772]
[1751308649410,5.64771242,155.79,155.78,0.4611772]
[1751308650317,37.29542484,155.79,155.78,0.4611772]
[1751308650519,37.29542484,155.79,155.77,10.10305178]
[1751308650816,32.60771242,155.78,155.77,10.10305178]
[1751308651114,39.0270217,155.78,155.77,10.10305178]
[1751308651288,26.0,155.74,155.73,17.35503436]
[1751308651495,31.64771242,155.74,155.73,17.35503436]
[1751308652211,26.98,155.75,155.73,17.35503436]
[1751308652418,5.64771242,155.74,155.73,17.35503436]
[1751308653316,12.21083199,155.74,155.73,17.35503436]
[1751308655204,12.06867042,155.74,155.73,17.35503436]
[1751308655609,12.21083199,155.74,155.73,17.35503436]
[1751308658202,31.14480399,155.74,155.73,17.35503436]
[1751308659719,12.21083199,155.74,155.73,17.35503436]
[1751308660217,38.21083199,155.74,155.73,17.35503436]
[1751308660421,38.21083199,155.74,155.71,0.1]
[1751308660422,26.14216157,155.72,155.71,0.1]
[1751308660727,58.78987399,155.72,155.71,0.1]
[1751308661515,65.21165667,155.72,155.71,0.1]
[1751308662223,39.0694951,155.72,155.71,0.1]
[1751308662818,6.42178268,155.72,155.71,0.1]
[1751308663134,12.0694951,155.72,155.71,0.1]
[1751308665819,16.12223739,155.73,155.71,0.1]
[1751308666015,16.89592067,155.73,155.71,0.1]
[1751308666835,22.54363309,155.73,155.71,0.1]
[1751308667328,16.89592067,155.73,155.71,0.1]
[1751308667526,22.54363309,155.73,155.71,0.1]
[1751308668310,10.47452497,155.73,155.71,0.1]
[1751308670844,16.89596894,155.73,155.71,0.1]
[1751308671436,10.47452497,155.73,155.71,0.1]
[1751308671639,22.54365355,155.73,155.71,0.1]
[1751308671944,16.12223739,155.73,155.71,0.1]
[1751308672740,5.64771242,155.72,155.71,0.1]
[1751308673042,5.64771242,155.72,155.71,4.87775499]
[1751308673217,5.64771242,155.72,155.71,0.1]
[1751308674016,12.0694951,155.72,155.71,0.1]
[1751308681641,12.21165667,155.72,155.71,0.1]
[1751308681831,39.19165667,155.72,155.71,0.1]
[1751308682821,0.14216157,155.71,155.7,12.05251026]
[1751308683022,0.14216157,155.68,155.67,12.17108]
[1751308683241,32.62771242,155.68,155.67,12.17108]
[1751308683839,5.64771242,155.68,155.67,12.17108]
[1751308684551,12.0711451,155.68,155.67,12.17108]
[1751308684932,6.42343268,155.68,155.67,12.17108]
[1751308685136,12.0711451,155.68,155.67,12.17108]
[1751308685338,6.42343268,155.68,155.67,12.17108]
[1751308685647,12.0711451,155.68,155.67,12.17108]
[1751308687532,6.42343268,155.68,155.67,12.17108]
[1751308687845,12.0711451,155.68,155.67,12.17108]
[1751308688232,162.2567266,155.7,155.67,12.17108]